fUST/lending_fUST_20240211
["ID","MTS","AMOUNT","RATE_DAILY","PERIOD"]
[313717235,1707604232740,-15647.47,0.00019877,3]
[313717236,1707604232749,-18776.96,0.00019887,3]
[313717237,1707604232758,-16494.61,0.00019888,3]
[313717238,1707604232767,-640.71697919,0.00019897,2]
[313717239,1707604232776,-498.96847831,0.00019897,2]
[313717240,1707604232798,-155.1750885,0.00019897,2]
[313717241,1707604232808,-686.49635587,0.00019898,2]
[313717242,1707604232823,-124.59717297,0.00019898,2]
[313717243,1707604232833,-763.21064508,0.00019898,2]
[313717244,1707604232843,-171.11143142,0.00019898,2]
[313717245,1707604232852,-5.48438484,0.00019898,2]
[313717290,1707604238358,-454.5514813,0.00017767,2]
[313717292,1707604238368,-454.5514813,0.00017767,2]
[313717294,1707604238377,-11701.8679605,0.00019867,3]
[313717299,1707604238468,-1337.6920395,0.00019867,3]
[313717300,1707604238477,-3113.930881,0.00019898,2]
[313717302,1707604238487,-204.44871128,0.00019898,2]
[313717303,1707604238496,-155.13167759,0.00019898,2]
[313717304,1707604238504,-201.6297404,0.00019898,2]
[313717305,1707604238514,-651.85853467,0.00019898,2]
[313717306,1707604238523,-906.46807467,0.00019898,2]
[313717307,1707604238532,-1745.27472039,0.00019898,2]
[313717308,1707604238541,-968.60320593,0.00019898,2]
[313717309,1707604238550,-182.01795933,0.00019898,2]
[313717310,1707604238559,-500.0,0.00019898,2]
[313717311,1707604238568,-519.56748312,0.00019898,2]
[313717312,1707604238577,-166.88012434,0.00019899,2]
[313717313,1707604238587,-155.26660478,0.00019899,2]
[313717314,1707604238597,-563.89403732,0.00019899,2]
[313717315,1707604238606,-35619.98510776,0.00019899,2]
[313717316,1707604238615,-35642.36830711,0.000199,2]
[313717317,1707604238630,-3220.32595622,0.000199,2]
[313717341,1707604247682,-8373.36490822,0.0001989,3]
[313717378,1707605159084,-1434.56222192,0.00016853,2]
[313717379,1707605159104,-175.78589711,0.00016853,2]
[313717380,1707605159126,-261.98617996,0.00016853,2]
[313717381,1707605159146,-161.5844476,0.00016853,2]
[313717382,1707605159166,-323.90420148,0.00016853,2]
[313717383,1707605159185,-228.90420585,0.00016854,2]
[313717384,1707605159204,-1860.75293793,0.00016855,2]
[313717385,1707605159223,-3332.01897301,0.00016855,2]
[313717386,1707605159243,-154.8915759,0.00016855,2]
[313717387,1707605159262,-2468.3658084,0.00016855,2]
[313717388,1707605159281,-563.40891521,0.00016855,2]
[313717389,1707605159301,-11289.78782565,0.00016855,2]
[313717390,1707605193441,-640.71697919,0.00016706,2]
[313717391,1707605193463,-13359.28302081,0.00016706,2]
[313717395,1707605241080,-228.90420585,0.00016704,2]
[313717396,1707605241100,-107.4922866,0.00016704,2]
[313717397,1707605242092,-216.41191488,0.00016704,2]
[313717398,1707605242113,-10861.42548655,0.00016705,2]
[313717399,1707605345096,-2621.00386489,0.00016702,2]
[313717426,1707605432486,-563.40891521,0.00015679,2]
[313717427,1707605432495,-18644.68659065,0.0001568,2]
[313717428,1707605432505,-1018.7537034,0.00015839,2]
[313717429,1707605432515,-18964.89870394,0.0001584,2]
[313717430,1707605432525,-24900.0,0.00015841,2]
[313717432,1707605432534,-172.15154598,0.00016604,2]
[313717434,1707605432543,-200.0,0.00016632,2]
[313717435,1707605432553,-3331.11583039,0.00016707,2]
[313717438,1707605432562,-195.11326893,0.00016853,2]
[313717440,1707605432571,-261.98617996,0.00016854,2]
[313717442,1707605432580,-175.67250555,0.00016875,2]
[313717444,1707605432589,-1434.56222192,0.00016875,2]
[313717446,1707605432598,-224.83094116,0.00016875,2]
[313717447,1707605432607,-639.34674737,0.00016875,2]
[313717449,1707605432616,-323.90420148,0.00016875,2]
[313717451,1707605432626,-160.66729112,0.00016876,2]
[313717453,1707605432635,-1141.56797646,0.00016876,2]
[313717456,1707605432648,-1883.40870616,0.00016876,2]
[313717458,1707605432657,-783.74050421,0.00017908,2]
[313717459,1707605432666,-280.0,0.00018295,2]
[313717461,1707605432675,-224.66178879,0.00018694,2]
[313717463,1707605432685,-678.94138998,0.00018793,2]
[313717465,1707605432694,-2623.82432635,0.00018794,2]
[313717467,1707605432703,-422.09681954,0.00018794,2]
[313717469,1707605432716,-2069.68471635,0.00018794,2]
[313717472,1707605432732,-5494.19149231,0.00018794,2]
[313717473,1707605432741,-821.15351128,0.00018794,2]
[313717475,1707605432750,-4822.51089495,0.00018795,2]
[313717529,1707605440041,-228.90420585,0.00015678,2]
[313717531,1707605440051,-1665.92976161,0.00018795,2]
[313717532,1707605440063,-4337.11282401,0.00018795,2]
[313717534,1707605440074,-154.8915759,0.00018795,2]
[313717535,1707605440085,-1077.386065,0.000189,2]
[313717536,1707605440097,-168.246908,0.00019178,2]
[313717537,1707605440107,-428.50000661,0.000194,2]
[313717538,1707605440119,-1115.39137616,0.000195,2]
[313717539,1707605440130,-5875.29058151,0.000198,2]
[313717540,1707605440143,-466.08556778,0.000198,2]
[313717548,1707605442046,-1546.35468549,0.000198,2]
[313717549,1707605442060,-4103.72258304,0.000198,2]
[313717573,1707605443543,-4795.4188756,0.000198,2]
[313717586,1707605446530,-1360.34124795,0.0001979,3]
[313717612,1707605658708,600.0,0.00012,7]
[313717620,1707605840884,334.26591447,0.00019798,5]
[313717659,1707606370706,-500.0,0.00018162,2]
[313717660,1707606370728,-651.85853467,0.00018162,2]
[313717661,1707606370751,-228.90420585,0.00018163,2]
[313717662,1707606370772,-212.68328114,0.00018164,2]
[313717663,1707606370792,-5282.62575812,0.00018165,2]
[313717664,1707606370814,-154.8915759,0.00018166,2]
[313717665,1707606370838,-1962.08695395,0.00018166,2]
[313717666,1707606370861,-154.8915759,0.00018166,2]
[313717667,1707606370883,-718.43159895,0.00018166,2]
[313717668,1707606370909,-155.46374415,0.00018166,2]
[313717669,1707606370941,1688.81025991,0.00018163,2]
[313717673,1707606410732,-330.63590163,0.00018187,2]
[313717674,1707606410755,-506.95376191,0.00018187,2]
[313717675,1707606410776,-247.70101724,0.00018187,2]
[313717676,1707606410797,-521.49319792,0.00018187,2]
[313717677,1707606410820,-258.3608514,0.00018187,2]
[313717678,1707606410841,-609.9899794,0.00018187,2]
[313717679,1707606410864,-3757.67448716,0.00018187,2]
[313717680,1707606410885,-2244.56236047,0.00018187,2]
[313717681,1707606410909,-212.6780741,0.00018187,2]
[313717682,1707606410932,-228.90420585,0.00018187,2]
[313717683,1707606410954,-155.46374415,0.00018187,2]
[313717684,1707606410976,-1960.72952473,0.00018187,2]
[313717685,1707606410997,-154.8915759,0.00018187,2]
[313717686,1707606411021,-156.84572251,0.00018187,2]
[313717687,1707606411044,-1688.81025991,0.00018187,2]
[313717688,1707606411065,-500.0,0.00018187,2]
[313717689,1707606411087,-718.17703777,0.00018187,2]
[313717690,1707606411109,-257.9873288,0.00018187,2]
[313717691,1707606411133,-481.65416914,0.00018188,2]
[313717692,1707606411155,-3744.69873029,0.00018188,2]
[313717693,1707606411178,-3551.14058118,0.00018189,2]
[313717696,1707606444076,-426.23099128,0.00018188,2]
[313717697,1707606444096,-271.36040216,0.00018188,2]
[313717698,1707606444116,-6688.85372839,0.00018189,2]
[313717699,1707606451090,-414.25852184,0.00018189,2]
[313717700,1707606451118,-154.8915759,0.00018189,2]
[313717728,1707606632631,-535.69531343,0.00018241,2]
[313717729,1707606632640,-228.90420585,0.00018241,2]
[313717730,1707606632649,-163.83177483,0.00018242,2]
[313717731,1707606632659,-783.64040907,0.00018278,2]
[313717732,1707606632668,-1688.81025991,0.00018278,2]
[313717733,1707606632678,-154.8915759,0.00018279,2]
[313717734,1707606632687,-710.7642809,0.00018279,2]
[313717735,1707606632696,-876.95049268,0.0001828,2]
[313717747,1707606640031,-3394.13747549,0.0001828,2]
[313717748,1707606640042,-20628.91203183,0.0001828,2]
[313717749,1707606640051,-250.0,0.00018342,2]
[313717750,1707606640061,-6023.70387683,0.00018884,2]
[313717751,1707606640070,-2212.75909754,0.00018898,2]
[313717752,1707606640079,-1090.9462022,0.000189,2]
[313717753,1707606640089,-168.591889,0.00019178,2]
[313717754,1707606640098,-200.0,0.00019193,2]
[313717755,1707606640107,-1115.39137616,0.000195,2]
[313717756,1707606640116,-18928.01,0.0001968,3]
[313717757,1707606640125,-13144.45,0.0001968,3]
[313717758,1707606640134,-179.18399601,0.00019689,2]
[313717759,1707606640143,-8990.85031979,0.0001969,3]
[313717761,1707606640155,-2329.59110586,0.0001969,3]
[313717765,1707606640166,-1321.62343863,0.0001969,3]
[313717768,1707606640177,-260.29428997,0.0001969,3]
[313717771,1707606640188,-2870.98084575,0.0001969,3]
[313717775,1707606640197,-36135.00251023,0.000197,2]
[313717777,1707606640209,-357.62281226,0.000197,2]
[313717782,1707606640221,-14064.28988862,0.000197,2]
[313717784,1707606640233,-7950.84398679,0.000197,2]
[313717884,1707606642199,-151.66572574,0.000197,2]
[313717885,1707606642211,-2449.67535945,0.000197,2]
[313717886,1707606642223,-476.48639649,0.000197,2]
[313717887,1707606642234,-3392.9835901,0.000197,2]
[313717900,1707606643649,-3887.62442524,0.0001969,3]
[313717903,1707606643703,-5120.07663628,0.0001969,3]
[313717975,1707606646713,-1946.00893848,0.0001969,3]
[313717976,1707606646723,-13494.49254448,0.000197,2]
[313718000,1707607628209,-247.567337,0.00016071,2]
[313718001,1707607628229,-651.85853467,0.00017032,2]
[313718002,1707607628248,-865.10785063,0.00017032,2]
[313718004,1707607636090,-228.90420585,0.0001607,2]
[313718005,1707607636113,-360.72437226,0.0001607,2]
[313718006,1707607636136,-396.55990912,0.00017032,2]
[313718008,1707607647080,-535.69531343,0.00017031,2]
[313718009,1707607647100,-172.89446217,0.00017032,2]
[313718010,1707607647119,-881.98360387,0.00017032,2]
[313718011,1707607651087,-155.46374415,0.00017031,2]
[313718012,1707607651107,-415.91803178,0.00017032,2]
[313718013,1707607651128,-166.93718854,0.00017042,2]
[313718014,1707607651150,-25.5613513,0.00017042,2]
[313718015,1707607667074,2509.49,0.000255,30]
[313718018,1707607707890,-228.90420585,0.00014998,2]
[313718019,1707607707913,-1168.25696294,0.00014999,2]
[313718020,1707607707935,-46602.83883121,0.00015,2]
[313718030,1707607757087,-195.85557717,0.00014999,2]
[313718031,1707607757108,-13359.28302081,0.00014999,2]
[313718032,1707607757128,-8162.38856733,0.00015,2]
[313718033,1707607760083,-5282.62575812,0.00014998,2]
[313718034,1707607760105,-40598.5483535,0.00015,2]
[313718036,1707607768145,-4308.7404908,0.00015,2]
[313718037,1707607771078,-3508.48375716,0.00015,2]
[313718081,1707607838274,-158.56869746,0.00016941,2]
[313718082,1707607838283,-347.91306586,0.00017041,2]
[313718084,1707607838388,-1896.64929461,0.00017041,2]
[313718086,1707607838398,-651.85853467,0.00017042,2]
[313718088,1707607838407,-260.44121935,0.00017042,2]
[313718090,1707607838417,-380.31242183,0.00017042,2]
[313718092,1707607838427,-1445.15593814,0.00017042,2]
[313718094,1707607838436,-223.92102613,0.00017042,2]
[313718096,1707607838446,-399.76087564,0.00017042,2]
[313718098,1707607838455,-1962.08695395,0.00017042,2]
[313718100,1707607838463,-1688.81025991,0.00017042,2]
[313718102,1707607838472,-3757.67448716,0.00017042,2]
[313718104,1707607838481,-300.10478612,0.00017042,2]
[313718106,1707607838490,-718.43159895,0.00017042,2]
[313718108,1707607838499,-155.09926353,0.00017043,2]
[313718110,1707607838507,-3744.69873029,0.00017043,2]
[313718112,1707607838516,-24900.0,0.00017044,2]
[313718114,1707607838525,-715.4821902,0.00017563,2]
[313718116,1707607838534,-763.88031577,0.00017726,2]
[313718118,1707607838543,-200.0,0.00017893,2]
[313718120,1707607838552,-171.0131344,0.0001796,2]
[313718122,1707607838561,-187.51390489,0.00017975,2]
[313718123,1707607838570,-727.29746814,0.000189,2]
[313718125,1707607838580,-1088.7750129,0.000195,2]
[313718128,1707607838589,-288.88906706,0.00019598,2]
[313718130,1707607838599,-280.0,0.00019682,2]
[313718132,1707607838608,-363.18255207,0.00019688,2]
[313718134,1707607838616,-5282.46,0.00019688,3]
[313718136,1707607838625,-8247.68,0.00019688,3]
[313718137,1707607838634,-167.39276402,0.00019696,2]
[313718139,1707607838643,-155.07443573,0.00019696,2]
[313718141,1707607838652,-500.0,0.00019697,2]
[313718143,1707607838662,-155.05892239,0.00019698,2]
[313718145,1707607838670,-20951.37484427,0.00019698,2]
[313718147,1707607838680,-2174.84271857,0.00019698,2]
[313718157,1707607841070,-6873.06,0.00019688,3]
[313718158,1707607841079,-6370.7032863,0.00019698,2]
[313718159,1707607841088,-1495.21646962,0.00019699,2]
[313718160,1707607841150,-250.66852142,0.00019699,2]
[313718161,1707607841159,-609.78077647,0.00019699,2]
[313718162,1707607841168,-3946.94194695,0.000197,2]
[313718163,1707607841179,-3983.9,0.000197,2]
[313718164,1707607841238,-16382.10872567,0.000197,2]
[313718171,1707607842938,-500.0,0.000197,2]
[313718198,1707608148654,1578.95880674,0.000201,5]
[313718291,1707608825089,-154.8915759,0.00017853,2]
[313718292,1707608825117,-228.90420585,0.00017853,2]
[313718293,1707608825142,-500.0,0.00017854,2]
[313718294,1707608825167,-281.35731475,0.00017854,2]
[313718295,1707608834102,-2607.2690256,0.00017853,2]
[313718296,1707608834126,-154.8915759,0.00017853,2]
[313718297,1707608834149,-370.50121992,0.00017854,2]
[313718298,1707608834171,-481.7415868,0.00017855,2]
[313718299,1707608834193,-155.46374415,0.00017855,2]
[313718300,1707608834215,-154.8915759,0.00017856,2]
[313718301,1707608834237,-163.17551542,0.00017857,2]
[313718302,1707608834260,-212.68328114,0.00017858,2]
[313718303,1707608834285,-214.1569826,0.00017859,2]
[313718304,1707608834308,-6727.95195643,0.00017877,2]
[313718360,1707609032078,-228.90420585,0.00016878,2]
[313718362,1707609032087,-500.0,0.00016879,2]
[313718364,1707609032097,-31248.82086335,0.00016884,2]
[313718366,1707609032107,-24900.0,0.00016885,2]
[313718368,1707609032115,-2621.00386489,0.00017696,2]
[313718370,1707609032125,-200.0,0.00017727,2]
[313718372,1707609032134,-481.47459559,0.00017875,2]
[313718374,1707609032144,-1480.06382764,0.00017875,2]
[313718412,1707609038278,-155.46374415,0.00016877,2]
[313718413,1707609038288,-344.53625585,0.00017875,2]
[313718613,1707609041411,-787.84727856,0.00017875,2]
[313718614,1707609041421,-156.84572251,0.00017875,2]
[313718615,1707609041430,-313.19676664,0.00017875,2]
[313718616,1707609041439,-164.88906243,0.00017875,2]
[313718617,1707609041450,-212.6780741,0.00017875,2]
[313718618,1707609041459,-257.9873288,0.00017875,2]
[313718619,1707609041468,-155.90258886,0.00017875,2]
[313718620,1707609041478,-154.8915759,0.00017876,2]
[313718621,1707609041487,-323.90420148,0.00017878,2]
[313718622,1707609041497,-92.86126561,0.00017878,2]
[313718623,1707609041509,-2033.72801131,0.00017878,2]
[313718624,1707609041521,-1708.79461699,0.00017878,2]
[313718625,1707609041533,-1185.58919883,0.00017878,2]
[313718626,1707609041544,-2021.56381413,0.00017878,2]
[313718627,1707609041567,-151.70021732,0.00017878,2]
[313718628,1707609041579,-267.36304732,0.00017878,2]
[313718900,1707610155097,-154.8915759,0.00015386,2]
[313718901,1707610155118,-1078.68643814,0.00015386,2]
[313718916,1707610165120,-228.90420585,0.00015385,2]
[313718917,1707610165140,-508.85174197,0.00015386,2]
[313718918,1707610165161,-1962.08695395,0.00015387,2]
[313718919,1707610165180,-193.619591,0.00015388,2]
[313718920,1707610165200,-5272.36859953,0.00015634,2]
[313718928,1707610171109,-154.8915759,0.00015633,2]
[313718929,1707610171129,-765.45372355,0.00015634,2]
[313719493,1707610239722,-154.92253873,0.00015635,2]
[313719495,1707610239732,-135.89622213,0.00015636,2]
[313719670,1707610241401,-5117.8928232,0.00015636,2]
[313719672,1707610241413,-2048.38803629,0.00015636,2]
[313719674,1707610241422,-3000.0,0.00015637,2]
[313719676,1707610241431,-156.42986693,0.00015988,2]
[313719679,1707610241443,-72.47433892,0.00015988,2]
[313719680,1707610241451,-415.04213088,0.00015988,2]
[313719683,1707610241463,-1361.51496361,0.00015988,2]
[313719685,1707610241474,-10677.42306868,0.00015988,2]
[313719687,1707610241486,-305.75,0.00015988,2]
[313719689,1707610241497,-362.68449822,0.00015988,2]
[313719692,1707610241509,-301.87875,0.00015988,2]
[313719694,1707610241520,-403.5335302,0.00015988,2]
[313719696,1707610241531,-963.9290257,0.00015988,2]
[313719698,1707610241543,-1776.93144459,0.00015988,2]
[313719700,1707610241552,-1710.50558448,0.00015989,2]
[313719702,1707610241561,-1104.52606455,0.00015989,2]
[313719704,1707610241573,-5657.45854315,0.0001599,2]
[313720163,1707610246285,-154.8915759,0.00015634,2]
[313720165,1707610246294,-622.79980352,0.00015634,2]
[313720167,1707610246303,-19242.54145685,0.0001599,2]
[313720169,1707610246312,-200.0,0.00016414,2]
[313720171,1707610246321,-17640.49452056,0.00017101,2]
[313720173,1707610246330,-154.0136922,0.00017778,2]
[313720175,1707610246339,-3399.82531504,0.00017878,2]
[313720177,1707610246348,-196342.36834167,0.00017878,2]
[313720179,1707610246360,-300.0,0.00017878,2]
[313720181,1707610246372,-13276.6855684,0.00017878,2]
[313722675,1707611342702,24900.0,0.00013764,2]
[313722676,1707611349101,-228.90420585,0.00014746,2]
[313722677,1707611349125,-181.61100377,0.00014747,2]
[313722678,1707611349148,-155.46374415,0.00014748,2]
[313722679,1707611349172,-6112.43934485,0.00014748,2]
[313722680,1707611349195,-609.9899794,0.00014749,2]
[313722681,1707611349218,-454.5514813,0.00014749,2]
[313722682,1707611349239,-523.84984319,0.0001475,2]
[313722683,1707611349260,-14707.55940079,0.00014751,2]
[313722684,1707611350098,-613.56500053,0.00014751,2]
[313722685,1707611351100,-3643.77430262,0.00014751,2]
[313722686,1707611351123,-154.90705577,0.00014777,2]
[313722687,1707611351147,-323.90420148,0.00014777,2]
[313722688,1707611351168,-196.20391974,0.00014778,2]
[313722689,1707611351189,-1688.81025991,0.00015,2]
[313722738,1707611432380,-228.90420585,0.00015631,2]
[313722740,1707611432390,-3203.70375686,0.00015632,2]
[313722742,1707611432439,-377.10028117,0.00015632,2]
[313722744,1707611432448,-2719.71394358,0.00015635,2]
[313722746,1707611432461,-654.15093033,0.00015636,2]
[313722747,1707611432470,-308.96041202,0.00016098,2]
[313722748,1707611432479,-535.50901674,0.00017876,2]
[313722749,1707611432488,-155.46374415,0.00017876,2]
[313722750,1707611432498,-622.12226943,0.00017876,2]
[313722751,1707611432507,-426.23099128,0.00017876,2]
[313722752,1707611432516,-181.61100377,0.00017876,2]
[313722753,1707611432525,-2733.35859069,0.00017876,2]
[313722754,1707611432534,-609.9899794,0.00017876,2]
[313722755,1707611432543,-154.90705577,0.00017876,2]
[313722756,1707611432554,-4495.75258545,0.00017877,2]
[313722757,1707611432563,-46687.30727181,0.00017878,2]
[313722758,1707611432572,-500.0,0.0001788,2]
[313722759,1707611432581,-13838.38867769,0.00017881,2]
[313722760,1707611432591,-154.01369217,0.0001853,2]
[313722761,1707611432600,-355.09276352,0.0001863,2]
[313722762,1707611432613,-1.37172748,0.0001863,2]
[313722763,1707611432622,-153.0,0.0001863,2]
[313722764,1707611432631,-153.0,0.0001863,2]
[313722765,1707611432641,-132.19327252,0.0001863,2]
[313722766,1707611432653,-20.80672748,0.0001863,2]
[313722767,1707611432662,-153.0,0.0001863,2]
[313722769,1707611432672,-150.41290785,0.000187,2]
[313722829,1707611441613,-2.58709215,0.000187,2]
[313722830,1707611441623,-200.0,0.00018769,2]
[313722831,1707611441632,-484.86497876,0.000189,2]
[313722832,1707611441642,-247.70101724,0.00018908,2]
[313722833,1707611441651,-330.63590163,0.00018908,2]
[313722834,1707611441660,-640.71697919,0.00018908,2]
[313722835,1707611441670,-258.3608514,0.00018908,2]
[313722836,1707611441680,-155.21381006,0.00018908,2]
[313722837,1707611441689,-1450.39521974,0.00018908,2]
[313722838,1707611441699,-167.633153,0.00019178,2]
[313722839,1707611441708,-154.01369217,0.00019215,2]
[313722840,1707611441718,-153.0,0.00019452,2]
[313722841,1707611441727,-153.0,0.00019452,2]
[313722842,1707611441736,-906.67733416,0.00019596,2]
[313722843,1707611441745,-1746.49526169,0.00019597,2]
[313722844,1707611441755,-5222.51867191,0.00019598,2]
[313722845,1707611441771,-1954.88341978,0.00019598,2]
[313722846,1707611441784,-807.2935525,0.00019598,2]
[313722847,1707611441793,-1219.93475727,0.00019598,2]
[313722855,1707611446446,-640.14849475,0.00019598,2]
[313722856,1707611446456,-821.15351128,0.00019599,2]
[313722857,1707611446465,-718.17703777,0.00019699,2]
[313722858,1707611446474,-161.76756923,0.00019789,2]
[313722859,1707611446484,-392.54084937,0.00019798,2]
[313722860,1707611821494,878.14146005,0.000201,4]
[313722861,1707611957654,1358.92989182,0.000201,5]
[313722862,1707612196079,261.71076217,0.00018442,7]
[313722863,1707612434090,-864.89278587,0.00017884,2]
[313722864,1707612435737,-569.66943605,0.00017884,2]
[313722865,1707612435757,-228.90420585,0.00017884,2]
[313722866,1707612435776,-66.53420873,0.00017884,2]
[313722867,1707612443092,-88.34189039,0.00017884,2]
[313722868,1707612443112,-563.40891521,0.00017885,2]
[313722869,1707612443136,-74.85210967,0.00017888,2]
[313722870,1707612444086,-801.41868736,0.00017888,2]
[313722871,1707612629968,24000.0,0.000255,30]
[313722891,1707612632622,-154.87609912,0.00017869,2]
[313722892,1707612632632,-1964.294613,0.0001787,2]
[313722893,1707612632642,-3112.08367646,0.00017888,2]
[313722894,1707612632652,-660.77997622,0.00017963,2]
[313722895,1707612632662,-1434.56222192,0.00017964,2]
[313722896,1707612632671,-317.56354302,0.00017964,2]
[313722897,1707612632680,-24900.0,0.00017965,2]
[313722898,1707612632690,-200.0,0.00018862,2]
[313722899,1707612632702,-323.24331917,0.000189,2]
[313722900,1707612632712,-3332.01897301,0.00019689,2]
[313722901,1707612632722,-19145.40708381,0.00019689,2]
[313722902,1707612632732,-154.01369217,0.00019788,2]
[313722903,1707612632741,-626.21285403,0.00019798,2]
[313722904,1707612632751,-154.92253873,0.00019798,2]
[313722905,1707612632761,-6746.57967839,0.00019878,3]
[313722906,1707612632773,-310.09304578,0.00019878,3]
[313722952,1707612638752,-1118.0799935,0.00019878,3]
[313723031,1707612643654,-1120.61670504,0.00019878,3]
[313723032,1707612643678,-0.02019547,0.00019878,3]
[313723033,1707612643690,-622.93575481,0.00019878,3]
[313723040,1707612646679,-1238.19462701,0.00019878,3]
[313723041,1707612646688,-4757.74893028,0.00019878,3]
[313723042,1707612646699,-2093.14398286,0.00019878,3]
[313723046,1707612656321,23235.21,0.000275,120]
[313723108,1707613630101,-651.85853467,0.00018063,2]
[313723109,1707613630121,-152.95653814,0.00018064,2]
[313723110,1707613631095,-61.20044446,0.00018064,2]
[313723111,1707613631115,-323.90420148,0.00018064,2]
[313723112,1707613631135,-212.68328114,0.00018064,2]
[313723113,1707613631155,-207.06397486,0.00018078,2]
[313723114,1707613633080,-781.35731475,0.00018078,2]
[313723115,1707613638214,-82.78304056,0.00018078,2]
[313723116,1707613638236,-781.75877525,0.00018079,2]
[313723157,1707613831849,-154.87609912,0.0001786,2]
[313723158,1707613831859,-24900.0,0.00017861,2]
[313723159,1707613831868,-212.68328114,0.00018077,2]
[313723160,1707613831877,-228.90420585,0.00018077,2]
[313723161,1707613831886,-1587.53818011,0.00018077,2]
[313723162,1707613831896,-1962.08695395,0.00018077,2]
[313723163,1707613831905,-1311.40596069,0.00018077,3]
[313723164,1707613831914,-281.35731475,0.00018078,2]
[313723165,1707613831923,-323.90420148,0.00018078,2]
[313723167,1707613831932,-209.95104642,0.00018078,2]
[313723169,1707613831941,-6037.82232308,0.00018078,2]
[313723171,1707613831950,-193.619591,0.00018783,2]
[313723173,1707613831959,-200.0,0.0001898,2]
[313723175,1707613831968,-200.0,0.000196,2]
[313723177,1707613831977,-200.0,0.000196,2]
[313723179,1707613831986,-200.0,0.000196,2]
[313723181,1707613831995,-200.0,0.000196,2]
[313723183,1707613832005,-200.0,0.000196,2]
[313723184,1707613832017,-200.0,0.000196,2]
[313723187,1707613832026,-200.0,0.000196,2]
[313723189,1707613832035,-200.0,0.000196,2]
[313723191,1707613832045,-200.0,0.000196,2]
[313723193,1707613832054,-200.0,0.000196,2]
[313723194,1707613832063,-200.0,0.000196,2]
[313723196,1707613832072,-200.0,0.000196,2]
[313723198,1707613832081,-200.0,0.000196,2]
[313723201,1707613832090,-200.0,0.000196,2]
[313723202,1707613832100,-200.0,0.000196,2]
[313723204,1707613832109,-200.0,0.000196,2]
[313723206,1707613832118,-200.0,0.000196,2]
[313723208,1707613832127,-200.0,0.000196,2]
[313723209,1707613832136,-200.0,0.000196,2]
[313723212,1707613832146,-200.0,0.000196,2]
[313723213,1707613832154,-200.0,0.000196,2]
[313723215,1707613832163,-200.0,0.000196,2]
[313723217,1707613832173,-200.0,0.000196,2]
[313723219,1707613832182,-200.0,0.000196,2]
[313723221,1707613832190,-200.0,0.000196,2]
[313723223,1707613832199,-200.0,0.000196,2]
[313723225,1707613832208,-200.0,0.000196,2]
[313723227,1707613832217,-200.0,0.000196,2]
[313723229,1707613832227,-200.0,0.000196,2]
[313723231,1707613832236,-200.0,0.000196,2]
[313723232,1707613832246,-200.0,0.000196,2]
[313723234,1707613832256,-200.0,0.000196,2]
[313723236,1707613832265,-200.0,0.000196,2]
[313723238,1707613832274,-200.0,0.000196,2]
[313723240,1707613832283,-200.0,0.000196,2]
[313723242,1707613832292,-200.0,0.000196,2]
[313723244,1707613832301,-200.0,0.000196,2]
[313723246,1707613832310,-200.0,0.000196,2]
[313723248,1707613832319,-200.0,0.000196,2]
[313723251,1707613832328,-200.0,0.000196,2]
[313723253,1707613832350,-211.68687,0.000196,2]
[313723255,1707613832359,-7212.9,0.00019886,3]
[313723257,1707613832369,-8655.49,0.00019888,3]
[313723259,1707613832379,-330.04300615,0.00019888,2]
[313723261,1707613832388,-1860.75293793,0.00019889,2]
[313723263,1707613832398,-1838.8140868,0.00019889,2]
[313723266,1707613832413,-629.5517216,0.00019889,2]
[313723268,1707613832423,-61.00536004,0.0001989,3]
[313723275,1707613832479,-920.34529945,0.0001989,3]
[313723277,1707613832491,-394.41643947,0.0001989,3]
[313723298,1707613837980,-3273.91327912,0.0001989,3]
[313723299,1707613837993,-5736.89962192,0.0001989,3]
[313723300,1707613838003,-161.5844476,0.00019896,2]
[313723301,1707613838012,-718.43159895,0.00019896,2]
[313723302,1707613838023,-175.78589711,0.00019897,2]
[313723303,1707613838032,-159.38167513,0.00019898,2]
[313723304,1707613838042,-171.0764813,0.00019898,2]
[313723450,1707613841130,-6010.75,0.0001989,3]
[313723452,1707613841140,-76.32304245,0.00019898,2]